fUSD/lending_fUSD_20250324
["ID","MTS","AMOUNT","RATE_DAILY","PERIOD"]
[356625546,1742845882185,-500.0,0.0005,5]
[356625547,1742845882194,-500.0,0.0005,5]
[356625548,1742845882204,-500.0,0.0005,5]
[356625549,1742845882213,-500.0,0.0005,5]
[356625550,1742845882223,-500.0,0.0005,5]
[356625551,1742845882233,-500.0,0.0005,5]
[356625552,1742845882242,-500.0,0.0005,5]
[356625553,1742845882251,-7307.80435145,0.0005,14]
[356625554,1742845882261,-210.20966745,0.0005,2]
[356625555,1742845882271,-1133.17602115,0.0005,2]
[356625556,1742845882280,-1513.07182602,0.0005,2]
[356625557,1742845882289,-1000000.0,0.0005,120]
[356625558,1742845882299,-1000000.0,0.0005,120]
[356625559,1742845882309,-1000000.0,0.0005,120]
[356625560,1742845882319,-1000000.0,0.0005,120]
[356625561,1742845882328,-1000000.0,0.0005,120]
[356625562,1742845882338,-1000000.0,0.0005,120]
[356625563,1742845882347,-1000000.0,0.0005,120]
[356625564,1742845882356,-156.466411,0.0005,90]
[356625565,1742845882366,-151.0,0.0005,120]
[356625566,1742845882375,-151.0,0.0005,120]
[356625567,1742845882383,-151.0,0.0005,120]
[356625568,1742845882393,-151.0,0.0005,120]
[356625569,1742845882402,-287.463517,0.0005,120]
[356625570,1742845882411,-1909.78439415,0.0005,90]
[356625571,1742845882420,-209.221113,0.0005,120]
[356625572,1742845882430,-209.221113,0.0005,120]
[356625573,1742845882439,-209.221113,0.0005,120]
[356625574,1742845882448,-209.221113,0.0005,120]
[356625575,1742845882458,-1000.0,0.00050015,30]
[356625576,1742845882467,-361.69,0.00050036,2]
[356625577,1742845882476,-677.23,0.00050036,2]
[356625578,1742845882486,-150.0,0.00050041,7]
[356625579,1742845882495,-1000.0,0.00050046,30]
[356625580,1742845882504,-300.0,0.00050094,7]
[356625581,1742845882514,-1000.0,0.00050107,30]
[356625582,1742845882523,-150.0,0.00050114,7]
[356625583,1742845882532,-150.0,0.00050126,7]
[356625584,1742845882542,-150.0,0.00050129,7]
[356625585,1742845882556,-782.66,0.00050136,2]
[356625586,1742845882566,-830.17,0.00050136,7]
[356625587,1742845882575,-151.0,0.00050136,120]
[356625588,1742845882585,-151.0,0.00050136,120]
[356625589,1742845882594,-151.0,0.00050136,120]
[356625590,1742845882604,-151.0,0.00050136,120]
[356625591,1742845882613,-611.59,0.00050136,120]
[356625592,1742845882623,-2989.75,0.00050136,120]
[356625593,1742845882633,-913.92,0.00050136,120]
[356625594,1742845882642,-656.99,0.00050136,7]
[356625595,1742845882652,-527.42,0.00050136,120]
[356625596,1742845882661,-500.0,0.00050136,100]
[356625597,1742845882670,-500.0,0.00050136,120]
[356625598,1742845882679,-1015.23,0.00050136,120]
[356625599,1742845882689,-500.0,0.00050136,120]
[356625600,1742845882698,-4628.36,0.00050136,120]
[356625601,1742845882707,-500.0,0.00050136,120]
[356625602,1742845882716,-500.0,0.00050136,120]
[356625603,1742845882725,-657.12,0.00050136,120]
[356625604,1742845882734,-500.0,0.00050136,120]
[356625605,1742845882744,-500.0,0.00050136,120]
[356625606,1742845882753,-500.22,0.00050136,120]
[356625607,1742845882763,-500.0,0.00050136,120]
[356625608,1742845882773,-500.0,0.00050136,120]
[356625609,1742845882782,-1853.82,0.00050136,120]
[356625610,1742845882792,-1056.54,0.00050136,120]
[356625611,1742845882801,-500.0,0.00050136,120]
[356625612,1742845882811,-7241.82,0.00050136,2]
[356625613,1742845882819,-150.0,0.00050145,7]
[356625614,1742845882830,-150.0,0.00050148,7]
[356625615,1742845882840,-150.0,0.00050152,30]
[356625616,1742845882850,-272.15826653,0.00050206,30]
[356625617,1742845882859,-150.0,0.00050217,7]
[356625618,1742845882869,-1000.0,0.00050219,30]
[356625619,1742845882878,-150.0,0.00050234,7]
[356625620,1742845882887,-1000.0,0.00050263,30]
[356625621,1742845882896,-186.0,0.00050276,120]
[356625622,1742845882906,-190.09583465,0.00050278,7]
[356625623,1742845882914,-632.46440981,0.00050282,30]
[356625624,1742845882924,-150.0,0.0005029,30]
[356625625,1742845882933,-150.0,0.00050299,7]
[356625626,1742845882942,-1000.0,0.00050301,30]
[356625627,1742845882950,-150.0,0.00050318,30]
[356625628,1742845882960,-150.0,0.00050331,7]
[356625629,1742845882969,-150.0,0.00050375,30]
[356625630,1742845882978,-1000.0,0.00050376,30]
[356625631,1742845882987,-150.0,0.00050393,7]
[356625632,1742845882997,-782.66,0.0005041,2]
[356625633,1742845883006,-830.17,0.0005041,7]
[356625634,1742845883016,-611.59,0.0005041,120]
[356625635,1742845883026,-2989.75,0.0005041,120]
[356625636,1742845883036,-913.92,0.0005041,120]
[356625637,1742845883045,-656.99,0.0005041,7]
[356625638,1742845883150,-527.42,0.0005041,120]
[356625639,1742845883161,-469.62101292,0.0005041,100]
[356625640,1742845883171,-500.0,0.0005041,120]
[356625641,1742845883181,-1015.23,0.0005041,120]
[356625642,1742845883191,-500.0,0.0005041,120]
[356625643,1742845883200,-4628.36,0.0005041,120]
[356625644,1742845883210,-500.0,0.0005041,120]
[356625645,1742845883218,-320.60815419,0.0005041,120]
[356625646,1742845883227,-657.12,0.0005041,120]
[356625647,1742845883237,-500.0,0.0005041,120]
[356625648,1742845883247,-605.13481299,0.0005041,120]
[356625649,1742845883257,-500.22,0.0005041,120]
[356625650,1742845883266,-500.0,0.0005041,120]
[356625651,1742845883276,-500.0,0.0005041,120]
[356625652,1742845883285,-1853.82,0.0005041,120]
[356625653,1742845883295,-1056.54,0.0005041,120]
[356625654,1742845883304,-500.0,0.0005041,120]
[356625655,1742845883313,-150.0,0.00050415,7]
[356625656,1742845883322,-1000.0,0.00050422,30]
[356625657,1742845883332,-1000.0,0.00050462,30]
[356625658,1742845883341,-2060.76619217,0.00050475,120]
[356625659,1742845883350,-272.44876178,0.00050479,120]
[356625660,1742845883359,-1000.0,0.00050481,30]
[356625661,1742845883368,-217.71184913,0.00050492,120]
[356625662,1742845883377,-272.44876178,0.00050506,120]
[356625663,1742845883386,-1000.0,0.00050509,30]
[356625664,1742845883395,-150.0,0.00050528,7]
[356625665,1742845883405,-150.0,0.00050528,7]
[356625666,1742845883414,-150.0,0.0005053,7]
[356625667,1742845883423,-150.0,0.00050533,7]
[356625668,1742845883433,-559.45641511,0.0005054,120]
[356625669,1742845883442,-650.27464858,0.00050546,30]
[356625670,1742845883451,-217.71184913,0.00050559,120]
[356625671,1742845883459,-559.45641511,0.00050568,120]
[356625672,1742845883468,-150.0,0.00050571,7]
[356625673,1742845883478,-272.44876178,0.00050573,120]
[356625674,1742845883487,-272.44876178,0.00050582,120]
[356625675,1742845883497,-150.0,0.00050588,30]
[356625676,1742845883507,-150.0,0.0005059,30]
[356625677,1742845883516,-150.0,0.00050593,7]
[356625678,1742845883525,-2060.76619217,0.00050598,120]
[356625679,1742845883535,-150.0,0.00050637,7]
[356625680,1742845883548,-2060.76619217,0.00050639,120]
[356625681,1742845883558,-2060.76619217,0.00050642,120]
[356625682,1742845883567,-559.45641511,0.00050648,120]
[356625683,1742845883577,-700.0,0.0005067,7]
[356625684,1742845883590,-300.0,0.0005067,7]
[356625685,1742845883599,-217.71184913,0.00050672,120]
[356625686,1742845883608,-782.66,0.00050684,2]
[356625687,1742845883618,-830.17,0.00050684,7]
[356625688,1742845883627,-611.59,0.00050684,120]
[356625689,1742845883637,-2989.75,0.00050684,120]
[356625690,1742845883647,-913.92,0.00050684,120]
[356625691,1742845883656,-656.99,0.00050684,7]
[356625692,1742845883665,-527.42,0.00050684,120]
[356625693,1742845883675,-412.21379494,0.00050684,120]
[356625694,1742845883684,-1015.23,0.00050684,120]
[356625695,1742845883693,-500.0,0.00050684,120]
[356625696,1742845883702,-4628.36,0.00050684,120]
[356625697,1742845883712,-500.0,0.00050684,120]
[356625698,1742845883721,-2133.15,0.00050684,30]
[356625699,1742845883730,-657.12,0.00050684,120]
[356625700,1742845883739,-500.0,0.00050684,120]
[356625701,1742845883749,-500.22,0.00050684,120]
[356625702,1742845883758,-500.0,0.00050684,120]
[356625703,1742845883767,-500.0,0.00050684,120]
[356625704,1742845883777,-1853.82,0.00050684,120]
[356625705,1742845883786,-1056.54,0.00050684,120]
[356625706,1742845883795,-500.0,0.00050684,120]
[356625707,1742845883804,-1064.0,0.00050684,30]
[356625708,1742845883813,-18733.51908762,0.00050693,120]
[356625709,1742845883823,-141672.46100734,0.000507,30]
[356625710,1742845883833,-2000.0,0.000507,2]
[356625711,1742845883842,-484.1069,0.000507,30]
[356625712,1742845883851,-484.1069,0.000507,30]
[356625713,1742845883860,-2414.43411439,0.000507,120]
[356625714,1742845883869,-18733.51908762,0.00050709,120]
[356625715,1742845883878,-870.84739652,0.00050713,120]
[356625716,1742845883888,-18733.51908762,0.00050737,120]
[356625717,1742845883896,-2237.82566045,0.00050737,120]
[356625718,1742845883905,-2237.82566045,0.00050738,120]
[356625719,1742845883914,-544.89752355,0.00050742,120]
[356625720,1742845883923,-559.45641511,0.00050763,120]
[356625721,1742845883932,-544.89752355,0.00050765,120]
[356625722,1742845883941,-2237.82566045,0.00050766,120]
[356625723,1742845883950,-870.84739652,0.00050772,120]
[356625724,1742845883959,-217.71184913,0.00050777,120]
[356625725,1742845883968,-7948.89999072,0.00050784,120]
[356625726,1742845883977,-870.84739652,0.00050799,120]
[356625727,1742845883986,-314.5545709,0.00050828,2]
[356625728,1742845883995,-355.5167144,0.00050828,2]
[356625729,1742845884004,-396.4788579,0.00050828,2]
[356625730,1742845884014,-437.4410014,0.00050828,2]
[356625731,1742845884026,-478.4031449,0.00050828,2]
[356625732,1742845884035,-519.3652884,0.00050828,2]
[356625733,1742845884045,-774.6520172,0.00050828,2]
[356625734,1742845884055,-875.5292894,0.00050828,2]
[356625735,1742845884065,-976.4065617,0.00050828,2]
[356625736,1742845884075,-1077.2838339,0.00050828,2]
[356625737,1742845884084,-1178.1611061,0.00050828,2]
[356625738,1742845884094,-1279.0383784,0.00050828,2]
[356625739,1742845884104,-256.82414603,0.00050828,2]
[356625740,1742845884113,-152.0,0.00050898,13]
[356625741,1742845884123,-154.92314371,0.00050898,5]
[356625742,1742845884132,-500.0,0.00050958,120]
[356625743,1742845884142,-500.0,0.00050958,30]
[356625744,1742845884151,-500.0,0.00050958,120]
[356625745,1742845884160,-782.66,0.00050958,2]
[356625746,1742845884170,-668.12,0.00050958,120]
[356625747,1742845884179,-687.44,0.00050958,120]
[356625748,1742845884188,-500.0,0.00050958,120]
[356625749,1742845884197,-830.17,0.00050958,7]
[356625750,1742845884206,-611.59,0.00050958,120]
[356625751,1742845884216,-2989.75,0.00050958,120]
[356625752,1742845884225,-913.92,0.00050958,120]
[356625753,1742845884233,-656.99,0.00050958,7]
[356625754,1742845884242,-527.42,0.00050958,120]
[356625755,1742845884251,-1015.23,0.00050958,120]
[356625756,1742845884260,-500.0,0.00050958,120]
[356625757,1742845884269,-4628.36,0.00050958,120]
[356625758,1742845884278,-500.0,0.00050958,120]
[356625759,1742845884287,-657.12,0.00050958,120]
[356625760,1742845884296,-159.7640702,0.00050958,120]
[356625761,1742845884306,-500.22,0.00050958,120]
[356625762,1742845884315,-500.0,0.00050958,120]
[356625763,1742845884324,-500.0,0.00050958,120]
[356625764,1742845884333,-1853.82,0.00050958,120]
[356625765,1742845884342,-1056.54,0.00050958,120]
[356625766,1742845884351,-500.0,0.00050958,120]
[356625767,1742845884360,-50000.0,0.00051,51]
[356625768,1742845884370,-2071.13246764,0.00051,30]
[356625769,1742845884379,-1000.0,0.00051,120]
[356625770,1742845884387,-207.0269699,0.00051,120]
[356625771,1742845884397,-510.80530729,0.00051,120]
[356625772,1742845884406,-1003.0,0.00051,60]
[356625773,1742845884416,-1000000.0,0.00051,120]
[356625774,1742845884425,-4131.18,0.00051,30]
[356625775,1742845884434,-512.611447,0.00051,120]
[356625776,1742845884444,-512.611447,0.00051,120]
[356625777,1742845884453,-151.0,0.00051,120]
[356625778,1742845884462,-151.0,0.00051,120]
[356625779,1742845884471,-151.0,0.00051,120]
[356625780,1742845884480,-151.0,0.00051,120]
[356625781,1742845884489,-151.0,0.00051,120]
[356625782,1742845884499,-151.0,0.00051,120]
[356625783,1742845884508,-151.0,0.00051,120]
[356625784,1742845884517,-151.0,0.00051,120]
[356625785,1742845884526,-151.0,0.00051,120]
[356625786,1742845884535,-218.78099184,0.00051043,120]
[356625787,1742845884546,-616.95601441,0.00051164,120]
[356625788,1742845884555,-500.0,0.00051164,120]
[356625789,1742845884565,-500.0,0.00051232,120]
[356625790,1742845884575,-500.0,0.00051232,30]
[356625791,1742845884584,-500.0,0.00051232,120]
[356625792,1742845884595,-782.66,0.00051232,2]
[356625793,1742845884604,-668.12,0.00051232,120]
[356625794,1742845884711,-687.44,0.00051232,120]
[356625795,1742845884721,-500.0,0.00051232,120]
[356625796,1742845884730,-830.17,0.00051232,7]
[356625797,1742845884739,-611.59,0.00051232,120]
[356625798,1742845884748,-2989.75,0.00051232,120]
[356625799,1742845884758,-913.92,0.00051232,120]
[356625800,1742845884767,-656.99,0.00051232,7]
[356625801,1742845884775,-527.42,0.00051232,120]
[356625802,1742845884784,-1015.23,0.00051232,120]
[356625803,1742845884793,-500.0,0.00051232,120]
[356625804,1742845884802,-4628.36,0.00051232,120]
[356625805,1742845884811,-500.0,0.00051232,120]
[356625806,1742845884820,-657.12,0.00051232,120]
[356625807,1742845884829,-500.22,0.00051232,120]
[356625808,1742845884839,-500.0,0.00051232,120]
[356625809,1742845884848,-500.0,0.00051232,120]
[356625810,1742845884857,-1853.82,0.00051232,120]
[356625811,1742845884866,-1056.54,0.00051232,120]
[356625812,1742845884875,-500.0,0.00051232,120]
[356625813,1742845884884,-10000.0,0.000515,120]
[356625814,1742845884894,-500.0,0.00051506,120]
[356625815,1742845884903,-500.0,0.00051506,30]
[356625816,1742845884912,-500.0,0.00051506,120]
[356625817,1742845884922,-782.66,0.00051506,2]
[356625818,1742845884930,-668.12,0.00051506,120]
[356625819,1742845884939,-687.44,0.00051506,120]
[356625820,1742845884949,-500.0,0.00051506,120]
[356625821,1742845884958,-830.17,0.00051506,7]
[356625822,1742845884968,-611.59,0.00051506,120]
[356625823,1742845884979,-2989.75,0.00051506,120]
[356625824,1742845884988,-913.92,0.00051506,120]
[356625825,1742845884997,-656.99,0.00051506,7]
[356625826,1742845885007,-527.42,0.00051506,120]
[356625827,1742845885016,-1015.23,0.00051506,120]
[356625828,1742845885026,-500.0,0.00051506,120]
[356625829,1742845885035,-4628.36,0.00051506,120]
[356625830,1742845885045,-500.0,0.00051506,120]
[356625831,1742845885054,-657.12,0.00051506,120]
[356625832,1742845885063,-500.22,0.00051506,120]
[356625833,1742845885073,-500.0,0.00051506,120]
[356625834,1742845885082,-323.9752675,0.00051506,120]
[356625835,1742845885092,-1853.82,0.00051506,120]
[356625836,1742845885102,-1056.54,0.00051506,120]
[356625837,1742845885112,-500.0,0.00051506,120]
[356625838,1742845885121,-3000.0,0.0005169,31]
[356625839,1742845885130,-500.0,0.00051712,120]
[356625840,1742845885140,-500.0,0.0005178,120]
[356625841,1742845885150,-497.83078093,0.0005178,30]
[356625842,1742845885158,-500.0,0.0005178,120]
[356625843,1742845885168,-782.66,0.0005178,2]
[356625844,1742845885177,-668.12,0.0005178,120]
[356625845,1742845885186,-687.44,0.0005178,120]
[356625846,1742845885196,-354.51482939,0.0005178,120]
[356625847,1742845885206,-830.17,0.0005178,7]
[356625848,1742845885215,-611.59,0.0005178,120]
[356625849,1742845885225,-2989.75,0.0005178,120]
[356625850,1742845885234,-913.92,0.0005178,120]
[356625851,1742845885245,-656.99,0.0005178,7]
[356625852,1742845885255,-527.42,0.0005178,120]
[356625853,1742845885264,-1015.23,0.0005178,120]
[356625854,1742845885272,-500.0,0.0005178,120]
[356625855,1742845885281,-4628.36,0.0005178,120]
[356625856,1742845885290,-500.0,0.0005178,120]
[356625857,1742845885300,-657.12,0.0005178,120]
[356625858,1742845885309,-500.22,0.0005178,120]
[356625859,1742845885318,-500.0,0.0005178,120]
[356625860,1742845885327,-1853.82,0.0005178,120]
[356625861,1742845885337,-1056.54,0.0005178,120]
[356625862,1742845885346,-258.41200245,0.0005178,120]
[356625863,1742845885355,-598.68,0.00051819,2]
[356625864,1742845885366,-317.69156672,0.000519,10]
[356625865,1742845885376,-6791.84463906,0.000519,2]
[356625866,1742845885384,-269.26843988,0.000519,2]
[356625867,1742845885393,-50000.0,0.00052,52]
[356625868,1742845885403,-1583.7855155,0.00052,61]
[356625869,1742845885413,-58676.01226465,0.00052,39]
[356625870,1742845885424,-10000.00000099,0.00052,120]
[356625871,1742845885433,-510.80530729,0.00052,120]
[356625872,1742845885443,-200.0,0.00052,120]
[356625873,1742845885452,-1000000.0,0.00052,120]
[356625874,1742845885462,-512.611447,0.00052,120]
[356625875,1742845885471,-512.611447,0.00052,120]
[356625876,1742845885481,-151.0,0.00052,120]
[356625877,1742845885490,-151.0,0.00052,120]
[356625878,1742845885499,-151.0,0.00052,120]
[356625879,1742845885509,-151.0,0.00052,120]
[356625880,1742845885518,-151.0,0.00052,120]
[356625881,1742845885527,-151.0,0.00052,120]
[356625882,1742845885536,-151.0,0.00052,120]
[356625883,1742845885549,-151.0,0.00052,120]
[356625884,1742845885558,-1000000.0,0.00052,120]
[356625885,1742845885567,-1000000.0,0.00052,120]
[356625886,1742845885576,-1000000.0,0.00052,120]
[356625887,1742845885587,-1000000.0,0.00052,120]
[356625888,1742845885595,-1000000.0,0.00052,120]
[356625889,1742845885604,-548502.42957048,0.00052,120]
[356625890,1742846352833,500.0,0.00031531,120]
[356625891,1742846393779,500.0,0.00031531,120]
[356625892,1742846423256,500.0,0.00031531,120]
[356625893,1742846452855,500.0,0.00031531,120]
[356625894,1742846493828,500.0,0.00031531,90]
[356625895,1742846511223,500.0,0.00031531,30]
[356625896,1742846582340,499.99,0.00031531,120]
[356625897,1742846680205,500.0,0.00031531,120]
[356625898,1742846717334,500.0,0.00031531,90]
[356625899,1742846738280,500.0,0.00031531,60]
[356625900,1742846759870,500.0,0.00031531,120]
[356625901,1742846791380,500.0,0.00031531,120]
[356625906,1742847032041,-250.0,0.00011,2]
[356625907,1742847032051,-673.95,0.000119,2]
[356625908,1742847032093,-620.335,0.000119,2]
[356625909,1742847032251,-374.252,0.000119,2]
[356625999,1742847037880,-886.92587203,0.000119,2]
[356626000,1742847037937,-427.0469456,0.000119,2]
[356626001,1742847037949,-627.8160594,0.000119,2]
[356626002,1742847037996,-1179.52644961,0.000119,2]
[356626003,1742847038010,-2651.17387336,0.000119,2]
[356626004,1742847038020,-223.96226702,0.000219,3]
[356626005,1742847038030,-150.0,0.00021917,2]
[356626006,1742847038040,-150.0,0.00023287,2]
[356626007,1742847038049,-150.0,0.00024657,2]
[356626008,1742847038060,-528.671,0.0002577,11]
[356626009,1742847038070,-150.0,0.00026027,2]
[356626010,1742847038080,-154.34,0.00026849,2]
[356626011,1742847038090,-150.0,0.00027397,2]
[356626012,1742847038100,-150.0,0.00028767,2]
[356626013,1742847038109,-150.0,0.00030136,2]
[356626014,1742847038119,-500.0,0.00030976,2]
[356626015,1742847038128,-3149.289761,0.00031076,2]
[356626016,1742847038138,-3898.9328,0.00031233,2]
[356626017,1742847038147,-228.0,0.00031332,2]
[356626018,1742847038157,-5751.3172816,0.00031333,2]
[356626019,1742847038169,-320.14840894,0.00031333,2]
[356626020,1742847038181,-411.93182001,0.00031333,2]
[356626021,1742847038192,-384.1090751,0.00031333,2]
[356626022,1742847038223,-820.25186668,0.00031333,2]
[356626043,1742847040109,-2148.2701255,0.00031333,2]
[356626044,1742847040270,-7086.88638804,0.00031333,2]
[356626045,1742847040282,-5233.59699761,0.00031333,2]
[356626046,1742847040294,-3648.73360915,0.00031333,2]
[356626047,1742847040531,-44175.0,0.00031333,2]
[356626089,1742847046131,-916.61880197,0.00031333,2]
[356626098,1742847046548,-7505.87888387,0.00031333,2]
[356626100,1742847171243,-1542.083384,0.00030821,2]
[356626101,1742847171265,-500.0,0.00030976,2]
[356626102,1742847171295,-150.0,0.00030988,2]
[356626103,1742847171320,-36434.40868684,0.00031,2]
[356626104,1742847226862,299.3472,0.000309,2]
[356626105,1742847528400,298.01,0.00026849,2]
[356626108,1742847660939,209.98,0.00031,2]
[356626109,1742847908392,20566.17072916,0.00012,2]
[356626110,1742847927883,15123.25081009,0.00031542,30]
[356626135,1742848232186,-250.0,0.00011,2]
[356626136,1742848232196,-322.15270644,0.000119,2]
[356626137,1742848232207,-3958.59999998,0.000119,2]
[356626138,1742848232218,-370.04022624,0.000119,2]
[356626139,1742848232242,-638.93927412,0.000119,2]
[356626140,1742848232300,-1391.08289891,0.000119,2]
[356626141,1742848232356,-610.0,0.000119,2]
[356626142,1742848232468,-502.53789431,0.000119,2]
[356626143,1742848232477,-150.0,0.00011999,2]
[356626144,1742848232486,-251.09318453,0.00012,2]
[356626145,1742848232497,-427.97595981,0.00012,2]
[356626146,1742848232508,-13176.24352939,0.00012,2]
[356626147,1742848232519,-13131.133301,0.00012,2]
[356626155,1742848238056,-1200.0,0.00012,2]
[356626157,1742848238166,-257.26787767,0.00012,2]
[356626158,1742848238178,-2274.40999996,0.00012,2]
[356626159,1742848238227,-1217.63557993,0.00012,2]
[356626160,1742848238286,-604.71309673,0.00012,2]
[356626161,1742848238298,-21564.97040105,0.00012,2]
[356626162,1742848238309,-2115.47849276,0.00012,2]
[356626163,1742848238340,-18660.49886791,0.00012,2]
[356626167,1742848240412,-63560.19475952,0.00012,2]
[356626168,1742848240437,-12170.33456685,0.00012,2]
[356626169,1742848240655,-127660.52908135,0.00012,2]
[356626170,1742848240666,-17180.38214028,0.00012,2]
[356626171,1742848240678,-4964.31847984,0.00012,2]
[356626172,1742848240710,-619.39818052,0.00012,2]
[356626194,1742848243304,-672.54591315,0.00012,2]
[356626195,1742848243475,-707.3898016,0.00012,2]
[356626452,1742848246302,-30442.33807871,0.00012,2]
[356626453,1742848246314,-281051.85376694,0.00012,2]
[356626458,1742849176118,178.75686,0.00012,6]
[356626461,1742849431476,-540.097212,0.0001184,2]
[356626462,1742849431486,-161.0038,0.000119,2]
[356626463,1742849431495,-9634.25173593,0.000119,2]
[356626464,1742849431638,-24042.61756843,0.000119,2]
[356626465,1742849431650,-3993.40650774,0.000119,2]
[356626466,1742849434863,-1539.6573271,0.000119,2]
[356626467,1742849435033,-4965.0668608,0.000119,2]
[356626468,1742849435043,-150.0,0.000119,2]
[356626469,1742849435053,-2162.34723018,0.000119,2]
[356626470,1742849435063,-2162.34723018,0.000119,2]
[356626471,1742849435072,-500.0,0.00011973,2]
[356626472,1742849435081,-155.10620151,0.00011973,2]
[356626473,1742849435090,-150.0,0.00011999,2]
[356626474,1742849435100,-1955.13247733,0.00012,2]
[356626475,1742849435111,-5177.36231081,0.00012,2]
[356626509,1742849437279,-52809.61873836,0.00012,2]
[356626510,1742849437334,-932.58255358,0.00012,2]
[356626511,1742849437346,-6224.572055,0.00012,2]
[356626512,1742849437358,-9939.09304,0.00012,2]
[356626513,1742849437441,-150067.64485398,0.00012,2]
[356626514,1742849437451,-150.0,0.00012959,2]
[356626515,1742849437460,-150.0,0.0001309,2]
[356626516,1742849437470,-178.75687,0.00017,6]
[356626517,1742849437480,-159.68,0.000186,2]
[356626518,1742849437489,-150.99,0.00019423,2]
[356626519,1742849437499,-999.99,0.00019423,2]
[356626520,1742849437508,-300.433,0.00019423,2]
[356626521,1742849437518,-382.0,0.00019973,2]
[356626522,1742849437527,-178.75687,0.00022,6]
[356626523,1742849437536,-422.937,0.00025879,11]
[356626524,1742849437546,-190.08,0.00026294,2]
[356626525,1742849437555,-584.56,0.00026849,2]
[356626526,1742849437565,-155.70748136,0.00027,2]
[356626527,1742849437574,-178.75687,0.00027,6]
[356626528,1742849437583,-1124.21895463,0.00030911,2]
[356626529,1742849437592,-468.14,0.0003141,2]
[356626530,1742849437602,-2000.0,0.000315,2]
[356626531,1742849437618,-516.6826074,0.00031531,30]
[356626532,1742849437627,-3190.48050749,0.0003156,2]
[356626533,1742849437636,-801.36620466,0.00031859,2]
[356626534,1742849437645,-298.01,0.00032646,2]
[356626535,1742849437656,-584.56,0.00032646,2]
[356626536,1742849437666,-689.74,0.00032883,2]
[356626537,1742849437675,-200.0,0.00033036,2]
[356626538,1742849437684,-1000.0,0.00033149,2]
[356626539,1742849437693,-174.03,0.00033182,2]
[356626540,1742849437702,-428.88,0.00033368,2]
[356626541,1742849437711,-538.36,0.00033504,2]
[356626543,1742849437720,-200.0,0.00033563,2]
[356626545,1742849437729,-22438.27,0.00033595,2]
[356626546,1742849437739,-468.14,0.00033674,2]
[356626547,1742849437749,-7527.57795055,0.00033686,2]
[356626548,1742849437759,-218.02,0.00033877,120]
[356626549,1742849437768,-1114.42,0.00033887,2]
[356626550,1742849437778,-1000.0,0.00033913,2]
[356626551,1742849437788,-163.01,0.00033949,120]
[356626552,1742849437796,-13345.73,0.00033967,2]
[356626553,1742849437806,-169.75951688,0.00034016,2]
[356626554,1742849437815,-23900.0,0.00034051,2]
[356626555,1742849437825,-184.14,0.00034116,2]
[356626556,1742849437834,-2000.0,0.000342,2]
[356626557,1742849437843,-243.64,0.00034263,2]
[356626558,1742849437854,-250.0,0.00034274,2]
[356626559,1742849437863,-150.0,0.00034548,10]
[356626560,1742849437873,-29033.8148379,0.000348,2]
[356626561,1742849437882,-500.0,0.0003481,2]
[356626562,1742849437892,-500.0,0.0003481,2]
[356626563,1742849437900,-500.0,0.0003481,2]